[Event "EYCC Open U14 2021"]
[Site "Tornelo"]
[Date "2021.10.15"]
[Round "2.4"]
[White "Zakharov, Alexey O."]
[Black "Vergara Anton, Diego"]
[Result "1/2-1/2"]
[ECO "C00"]
[WhiteElo "1962"]
[BlackElo "2258"]
[Annotator "NA"]
[PlyCount "69"]
[EventDate "2021.10.15"]
[EventType "swiss"]
[EventCountry "NET"]
[SourceTitle "playchess.com"]
[Source "ChessBase"]
[SourceQuality "1"]
[TimeControl "5400+30"]

1. e4 {[%emt 0:00:30]} e6 {[%emt 0:00:39]} 2. d3 {[%emt 0:00:06]} d5 {[%emt 0:00:08]} 3. Nd2 {[%emt 0:00:05]} Nf6 {[%emt 0:00:17]} 4. Ngf3 {[%emt 0:00:07]} c5 {[%emt 0:00:25]} 5. g3 {[%emt 0:00:12]} Be7 {[%emt 0:00:23]} 6. Bg2 {[%emt 0:00:07]} Nc6 {[%emt 0:00:10]} 7. O-O {[%emt 0:00:09]} b6 {[%emt 0:00:33]} 8. e5 {[%emt 0:00:45]} Nd7 {[%emt 0:00:10]} 9. Re1 {[%emt 0:00:05]} Qc7 {[%emt 0:00:42]} 10. Qe2 {[%emt 0:00:08]} Bb7 {[%emt 0:00:22]} 11. h4 {[%emt 0:00:24]} O-O-O {[%emt 0:01:51]} 12. a3 {[%emt 0:04:41]} h6 {[%emt 0:04:40]} 13. h5 {[%emt 0:00:11]} Rdg8 {[%emt 0:04:31]} 14. c4 {[%emt 0:00:31]} d4 {[%emt 0:06:25]} 15. b4 {[%emt 0:05:52]} cxb4 {[%emt 0:06:47]} 16. Nb3 {[%emt 0:04:29]} Rd8 {[%emt 0:10:03]} 17. axb4 {[%emt 0:11:57]} Bxb4 {[%emt 0:02:04]} 18. Nbxd4 $14 {[%emt 0:01:16]} Nxd4 {[%emt 0:07:03]} 19. Nxd4 {[%emt 0:00:04]} Bxg2 {[%emt 0:05:30]} 20. Nb5 {[%emt 0:18:16]} Qxe5 {[%emt 0:10:02]} 21. Qxe5 {[%emt 0:06:54]} Nxe5 {[%emt 0:00:30]} 22. Rxe5 {[%emt 0:00:30]} Bf3 {[%emt 0:06:35]} 23. Re3 {[%emt 0:02:42]} Bb7 {[%emt 0:04:40]} 24. Nxa7+ {[%emt 0:01:46]} Kd7 {[%emt 0:01:37]} 25. Nb5 {[%emt 0:02:09]} Ra8 {[%emt 0:02:05]} 26. Rb1 {[%emt 0:00:33]} Be7 {[%emt 0:00:28]} 27. Bb2 {[%emt 0:01:00]} f6 {[%emt 0:01:50]} 28. Nd4 {[%emt 0:03:19]} Bc5 {[%emt 0:01:23]} 29. Rxe6 {[%emt 0:05:01]} Ra2 {[%emt 0:00:13]} 30. Bc3 {[%emt 0:03:10]} Rha8 {[%emt 0:03:58]} 31. Re2 {[%emt 0:17:58]} R8a3 {[%emt 0:01:15]} 32. Rxa2 {[%emt 0:02:15]} Rxa2 {[%emt 0:00:06]} 33. Kf1 {[%emt 0:00:16]} Bf3 {[%emt 0:01:50]} 34. Ra1 {[%emt 0:04:17]} Rxa1+ {[%emt 0:05:10]} 35. Bxa1 {[%emt 0:00:05]} 1/2-1/2

[Event "EYCC Open U14 2021"]
[Site "Tornelo"]
[Date "2021.10.15"]
[Round "2.5"]
[White "Olenik Campa, Rudi"]
[Black "Stevanovic, Jovan"]
[Result "1/2-1/2"]
[ECO "A38"]
[WhiteElo "2245"]
[BlackElo "1930"]
[Annotator "ChessBase"]
[PlyCount "120"]
[EventDate "2021.10.15"]
[EventType "swiss"]
[EventCountry "NET"]
[SourceTitle "playchess.com"]
[Source "ChessBase"]
[SourceQuality "1"]
[TimeControl "5400+30"]

1. Nf3 {[%emt 0:00:30]} Nf6 {[%emt 0:00:42]} 2. g3 {[%emt 0:00:05]} c5 {[%emt 0:00:10]} 3. Bg2 {[%emt 0:00:05]} Nc6 {[%emt 0:00:17]} 4. O-O {[%emt 0:01:07]} d6 {[%emt 0:00:14]} 5. c4 {[%emt 0:01:03]} g6 {[%emt 0:00:08]} 6. Nc3 {[%emt 0:02:12]} Bg7 {[%emt 0:00:37]} 7. d3 {[%emt 0:04:35]} O-O {[%emt 0:00:37]} 8. a3 {[%emt 0:00:40]} Ne8 {[%emt 0:05:22]} 9. Rb1 {[%emt 0:01:52]} a6 {[%emt 0:00:33]} 10. Bd2 {[%emt 0:01:08]} b5 {[%emt 0:06:54]} 11. cxb5 {[%emt 0:03:56]} axb5 {[%emt 0:00:03]} 12. Nxb5 {[%emt 0:01:10]} Rb8 {[%emt 0:00:12]} 13. Nc3 {[%emt 0:00:38]} Be6 {[%emt 0:01:18]} 14. Qc1 {[%emt 0:03:12]} Bb3 {[%emt 0:06:26]} 15. Bh6 {[%emt 0:01:15]} Qd7 {[%emt 0:01:14]} 16. Bxg7 {[%emt 0:01:41]} Kxg7 {[%emt 0:03:32]} 17. Ne4 {[%emt 0:04:56]} Nc7 {[%emt 0:02:37]} 18. Ned2 {[%emt 0:05:36]} Bd5 {[%emt 0:12:42]} 19. b4 {[%emt 0:01:32]} cxb4 {[%emt 0:01:14]} 20. axb4 {[%emt 0:00:06]} Kg8 {[%emt 0:00:37]} 21. Ne4 {[%emt 0:10:51]} Bxe4 {[%emt 0:08:19]} 22. dxe4 {[%emt 0:00:08]} Rb5 {[%emt 0:00:06]} 23. h4 {[%emt 0:15:34]} Na6 {[%emt 0:06:21]} 24. Qh6 {[%emt 0:04:26]} Rh5 {[%emt 0:00:18]} 25. Qd2 {[%emt 0:00:05]} Rb5 {[%emt 0:00:50]} 26. Kh2 {[%emt 0:02:01]} Rfb8 {[%emt 0:14:24]} 27. Bh3 {[%emt 0:01:40]} Qd8 {[%emt 0:00:06]} 28. Qh6 {[%emt 0:02:49]} Qf8 {[%emt 0:00:29]} 29. Qxf8+ {[%emt 0:02:31]} Kxf8 {[%emt 0:00:06]} 30. Bd7 {[%emt 0:00:24]} Naxb4 {[%emt 0:07:52]} 31. Rfc1 {[%emt 0:09:34]} R5b6 {[%emt 0:00:54]} 32. h5 {[%emt 0:02:51]} Kg7 {[%emt 0:01:56]} 33. Kg2 {[%emt 0:00:24]} Ne5 {[%emt 0:03:51]} 34. Nxe5 {[%emt 0:01:12]} dxe5 {[%emt 0:00:03]} 35. Rc5 {[%emt 0:00:27]} Kf6 {[%emt 0:00:35]} 36. Rb3 {[%emt 0:03:08]} e6 {[%emt 0:06:20]} 37. Rf3+ {[%emt 0:02:34]} Ke7 {[%emt 0:00:04]} 38. Ba4 {[%emt 0:00:03]} Kd6 {[%emt 0:00:09]} 39. Rc1 {[%emt 0:00:34]} R6b7 {[%emt 0:01:54]} 40. hxg6 {[%emt 0:04:44]} hxg6 {[%emt 0:00:05]} 41. Rd1+ {[%emt 0:00:03]} Ke7 {[%emt 0:00:09]} 42. Rh1 {[%emt 0:01:13]} Kf8 {[%emt 0:04:18]} 43. Rc3 {[%emt 0:01:54]} Na6 {[%emt 0:03:14]} 44. Rc6 {[%emt 0:01:46]} Rb6 {[%emt 0:00:43]} 45. Rh8+ {[%emt 0:01:08]} Kg7 {[%emt 0:00:09]} 46. Rxb8 {[%emt 0:00:03]} Rxc6 {[%emt 0:00:05]} 47. Bxc6 {[%emt 0:00:02]} Nxb8 {[%emt 0:00:02]} 48. Bb5 {[%emt 0:00:03]} Kf8 {[%emt 0:00:06]} 49. Kh3 {[%emt 0:00:26]} Ke7 {[%emt 0:00:06]} 50. Kh4 {[%emt 0:00:12]} f6 {[%emt 0:00:02]} 51. f4 {[%emt 0:01:01]} exf4 {[%emt 0:03:05]} 52. gxf4 {[%emt 0:00:03]} Kd6 {[%emt 0:00:09]} 53. Kg4 {[%emt 0:00:54]} Nc6 {[%emt 0:01:07]} 54. e5+ {[%emt 0:01:40]} fxe5 {[%emt 0:00:07]} 55. Bxc6 {[%emt 0:01:00]} Kxc6 {[%emt 0:00:04]} 56. fxe5 {[%emt 0:00:02]} Kd5 {[%emt 0:00:17]} 57. Kg5 {[%emt 0:00:03]} Kxe5 {[%emt 0:00:04]} 58. Kxg6 {[%emt 0:00:02]} Ke4 {[%emt 0:00:03]} 59. Kf6 {[%emt 0:00:04]} Ke3 {[%emt 0:00:04]} 60. Kxe6 {[%emt 0:00:02]} Kxe2 {[%emt 0:00:01]} 1/2-1/2

[Event "EYCC Open U14 2021"]
[Site "Tornelo"]
[Date "2021.10.15"]
[Round "2.6"]
[White "Palczert, Matyas"]
[Black "Veselov, Yaroslav"]
[Result "1/2-1/2"]
[ECO "B40"]
[WhiteElo "2204"]
[BlackElo "1922"]
[Annotator "ChessBase"]
[PlyCount "85"]
[EventDate "2021.10.15"]
[EventType "swiss"]
[EventCountry "NET"]
[SourceTitle "playchess.com"]
[Source "ChessBase"]
[SourceQuality "1"]
[TimeControl "5400+30"]

1. e4 {[%emt 0:00:30]} c5 {[%emt 0:00:34]} 2. Nf3 {[%emt 0:00:11]} e6 {[%emt 0:00:09]} 3. g3 {[%emt 0:00:15]} Nc6 {[%emt 0:00:11]} 4. Bg2 {[%emt 0:00:19]} d5 {[%emt 0:00:28]} 5. exd5 {[%emt 0:00:22]} Qxd5 {[%emt 0:01:06]} 6. Nc3 {[%emt 0:01:12]} Qd8 {[%emt 0:00:08]} 7. d3 {[%emt 0:01:59]} Nf6 {[%emt 0:00:08]} 8. Be3 {[%emt 0:02:03]} Be7 {[%emt 0:00:52]} 9. d4 {[%emt 0:04:12]} cxd4 {[%emt 0:04:59]} 10. Nxd4 {[%emt 0:00:30]} Bd7 {[%emt 0:00:11]} 11. Qe2 {[%emt 0:03:15]} Nxd4 {[%emt 0:03:49]} 12. Bxd4 {[%emt 0:00:14]} Bc6 {[%emt 0:00:04]} 13. Bxc6+ {[%emt 0:06:15]} bxc6 {[%emt 0:00:05]} 14. O-O-O {[%emt 0:00:58]} Qa5 {[%emt 0:05:52]} 15. Qe5 {[%emt 0:04:00]} Qxe5 {[%emt 0:02:56]} 16. Bxe5 {[%emt 0:00:08]} Rd8 {[%emt 0:00:40]} 17. Rd4 {[%emt 0:05:23]} Bc5 {[%emt 0:08:29]} 18. Rxd8+ {[%emt 0:03:21]} Kxd8 {[%emt 0:00:22]} 19. Rd1+ {[%emt 0:01:13]} Ke7 {[%emt 0:06:49]} 20. Bd4 {[%emt 0:01:36]} Bb6 {[%emt 0:03:39]} 21. a4 {[%emt 0:06:27]} Rd8 {[%emt 0:02:32]} 22. Bxb6 {[%emt 0:01:32]} axb6 {[%emt 0:02:20]} 23. Rxd8 {[%emt 0:00:39]} Kxd8 {[%emt 0:00:04]} 24. f3 {[%emt 0:00:18]} c5 {[%emt 0:03:22]} 25. Ne4 {[%emt 0:04:47]} Nxe4 {[%emt 0:17:22]} 26. fxe4 {[%emt 0:00:10]} Kd7 {[%emt 0:00:03]} 27. Kd2 {[%emt 0:01:20]} Kc6 {[%emt 0:00:12]} 28. b3 {[%emt 0:04:42]} b5 {[%emt 0:01:24]} 29. Kd3 {[%emt 0:12:01]} Kb6 {[%emt 0:01:05]} 30. Kd2 {[%emt 0:02:18]} Ka5 {[%emt 0:01:41]} 31. axb5 {[%emt 0:00:17]} Kxb5 {[%emt 0:00:04]} 32. c3 {[%emt 0:00:22]} c4 {[%emt 0:03:06]} 33. b4 {[%emt 0:04:30]} e5 {[%emt 0:00:05]} 34. Kc2 {[%emt 0:03:01]} g5 {[%emt 0:01:17]} 35. h3 {[%emt 0:00:39]} h5 {[%emt 0:00:05]} 36. Kd2 {[%emt 0:01:01]} g4 {[%emt 0:00:12]} 37. hxg4 {[%emt 0:01:09]} hxg4 {[%emt 0:01:24]} 38. Kc2 {[%emt 0:00:12]} Kb6 {[%emt 0:00:14]} 39. Kb2 {[%emt 0:00:08]} Ka6 {[%emt 0:00:07]} 40. Ka3 {[%emt 0:00:08]} Kb5 {[%emt 0:00:04]} 41. Kb2 {[%emt 0:00:06]} Kb6 {[%emt 0:00:03]} 42. Ka2 {[%emt 0:00:09]} Ka6 {[%emt 0:00:05]} 43. Ka3 {[%emt 0:00:05]} 1/2-1/2

[Event "EYCC Open U14 2021"]
[Site "Tornelo"]
[Date "2021.10.15"]
[Round "2.7"]
[White "Prazak, Daniel"]
[Black "Zlatkov, Anton"]
[Result "1/2-1/2"]
[ECO "B52"]
[WhiteElo "1945"]
[BlackElo "2154"]
[Annotator "NA"]
[PlyCount "92"]
[EventDate "2021.10.15"]
[EventType "swiss"]
[EventCountry "NET"]
[SourceTitle "playchess.com"]
[Source "ChessBase"]
[SourceQuality "1"]
[TimeControl "5400+30"]

1. e4 {[%emt 0:00:30]} c5 {[%emt 0:00:37]} 2. Nf3 {[%emt 0:00:07]} d6 {[%emt 0:00:07]} 3. Bb5+ {[%emt 0:00:07]} Bd7 {[%emt 0:00:06]} 4. Bxd7+ {[%emt 0:00:12]} Qxd7 {[%emt 0:00:05]} 5. c4 {[%emt 0:00:23]} Nf6 {[%emt 0:00:19]} 6. Nc3 {[%emt 0:00:09]} Nc6 {[%emt 0:00:05]} 7. d4 {[%emt 0:00:56]} cxd4 {[%emt 0:01:19]} 8. Nxd4 {[%emt 0:00:08]} e6 {[%emt 0:00:21]} 9. Be3 {[%emt 0:01:22]} Be7 {[%emt 0:00:07]} 10. O-O {[%emt 0:01:03]} O-O {[%emt 0:00:19]} 11. f3 {[%emt 0:03:05]} Rfd8 {[%emt 0:00:18]} 12. Rc1 {[%emt 0:04:04]} Rac8 {[%emt 0:01:05]} 13. Qe2 {[%emt 0:02:28]} d5 {[%emt 0:04:24]} 14. cxd5 {[%emt 0:03:16]} exd5 {[%emt 0:00:08]} 15. exd5 {[%emt 0:01:22]} Nxd5 {[%emt 0:00:26]} 16. Nxd5 {[%emt 0:00:52]} Qxd5 {[%emt 0:00:28]} 17. Nxc6 {[%emt 0:01:44]} bxc6 {[%emt 0:00:17]} 18. Bxa7 {[%emt 0:03:57]} Bf6 {[%emt 0:00:39]} (18... Bd6 $11) 19. b3 $1 {[%emt 0:21:14]} c5 {[%emt 0:09:36]} 20. Bb6 {[%emt 0:09:46]} Bd4+ {[%emt 0:00:23]} 21. Kh1 {[%emt 0:03:15]} Rd6 {[%emt 0:01:24]} 22. Bxc5 {[%emt 0:04:10]} Bxc5 {[%emt 0:01:25]} 23. b4 $1 {[%emt 0:00:55]} Rdc6 {[%emt 0:02:41]} 24. bxc5 {[%emt 0:00:38]} Rxc5 {[%emt 0:00:19]} 25. Rxc5 {[%emt 0:00:15]} Qxc5 {[%emt 0:00:09]} 26. a4 {[%emt 0:02:03]} g6 {[%emt 0:00:32]} 27. Qb5 {[%emt 0:01:08]} Qxb5 {[%emt 0:02:28]} 28. axb5 {[%emt 0:01:11]} Kf8 {[%emt 0:01:29]} 29. Rb1 {[%emt 0:00:56]} Ke7 {[%emt 0:01:38]} 30. Kg1 {[%emt 0:00:35]} Kd6 {[%emt 0:00:26]} 31. Kf2 {[%emt 0:00:05]} Rc2+ {[%emt 0:00:34]} 32. Kg3 {[%emt 0:01:41]} Kc7 {[%emt 0:02:56]} 33. b6+ {[%emt 0:03:41]} (33. Ra1 $18 {and White stays clearly on top.}) 33... Kb7 $16 {[%emt 0:00:20]} 34. Rb4 {[%emt 0:00:08]} f6 {[%emt 0:11:46]} 35. h4 {[%emt 0:04:08]} Rc6 {[%emt 0:02:34]} 36. Kf4 {[%emt 0:00:28]} Rxb6 {[%emt 0:01:37]} 37. Rxb6+ {[%emt 0:00:14]} Kxb6 {[%emt 0:00:05]} 38. g4 {[%emt 0:00:25]} Kc6 {[%emt 0:01:18]} 39. g5 {[%emt 0:00:28]} Kd6 {[%emt 0:00:14]} 40. gxf6 {[%emt 0:01:15]} h6 {[%emt 0:00:21]} 41. h5 {[%emt 0:02:34]} Ke6 {[%emt 0:00:24]} 42. hxg6 {[%emt 0:00:14]} Kxf6 {[%emt 0:00:05]} 43. Kg4 {[%emt 0:00:04]} Kxg6 {[%emt 0:00:10]} 44. f4 {[%emt 0:00:03]} h5+ {[%emt 0:00:05]} 45. Kh4 {[%emt 0:00:06]} Kf5 {[%emt 0:00:05]} 46. Kxh5 {[%emt 0:00:03]} Kxf4 {[%emt 0:00:04]} 1/2-1/2

[Event "EYCC Open U14 2021"]
[Site "Tornelo"]
[Date "2021.10.15"]
[Round "2.8"]
[White "Cuzovic, Ognjen"]
[Black "Lavrencic, Matic"]
[Result "0-1"]
[ECO "D05"]
[WhiteElo "1930"]
[BlackElo "2149"]
[Annotator "NA"]
[PlyCount "160"]
[EventDate "2021.10.15"]
[EventType "swiss"]
[EventCountry "NET"]
[SourceTitle "playchess.com"]
[Source "ChessBase"]
[SourceQuality "1"]
[TimeControl "5400+30"]

1. d4 {[%emt 0:00:30]} Nf6 {[%emt 0:00:35]} 2. Nf3 {[%emt 0:00:53]} d5 {[%emt 0:00:20]} 3. e3 {[%emt 0:00:05]} c5 {[%emt 0:01:05]} 4. c3 {[%emt 0:00:06]} e6 {[%emt 0:00:38]} 5. Bd3 {[%emt 0:00:04]} b6 {[%emt 0:00:48]} 6. O-O {[%emt 0:00:24]} Bb7 {[%emt 0:00:19]} 7. Nbd2 {[%emt 0:00:09]} Bd6 {[%emt 0:00:10]} 8. Re1 {[%emt 0:00:46]} O-O {[%emt 0:01:16]} 9. e4 {[%emt 0:06:39]} dxe4 {[%emt 0:00:21]} 10. Nxe4 {[%emt 0:00:07]} Nxe4 {[%emt 0:00:04]} 11. Bxe4 {[%emt 0:00:07]} Bxe4 {[%emt 0:00:04]} 12. Rxe4 {[%emt 0:00:34]} Nc6 {[%emt 0:01:59]} 13. Qd3 $11 {[%emt 0:17:03]} cxd4 {[%emt 0:04:18]} 14. Ng5 {[%emt 0:14:15]} dxc3 {[%emt 0:03:45]} 15. Rd4 {[%emt 0:02:58]} g6 {[%emt 0:01:21]} 16. Rxd6 {[%emt 0:00:08]} Qxd6 {[%emt 0:01:48]} 17. Qxd6 {[%emt 0:06:09]} Rfd8 {[%emt 0:00:10]} 18. Qxd8+ {[%emt 0:02:13]} Rxd8 {[%emt 0:00:04]} 19. Kf1 {[%emt 0:03:08]} Rd1+ {[%emt 0:01:39]} 20. Ke2 {[%emt 0:00:46]} c2 {[%emt 0:00:04]} 21. Nf3 {[%emt 0:01:44]} e5 {[%emt 0:04:25]} 22. Nd2 {[%emt 0:12:19]} Nd4+ {[%emt 0:00:50]} 23. Kd3 {[%emt 0:03:45]} b5 {[%emt 0:03:03]} 24. f4 {[%emt 0:02:46]} f6 {[%emt 0:00:49]} 25. fxe5 {[%emt 0:00:17]} fxe5 {[%emt 0:00:04]} 26. Kc3 {[%emt 0:01:58]} b4+ {[%emt 0:06:32]} 27. Kxb4 {[%emt 0:00:50]} Ne2 {[%emt 0:00:05]} 28. Nb3 {[%emt 0:00:09]} e4 {[%emt 0:00:54]} 29. a4 {[%emt 0:01:31]} Kf7 {[%emt 0:04:31]} 30. a5 {[%emt 0:00:25]} Ke6 {[%emt 0:00:22]} 31. a6 {[%emt 0:00:09]} Kd6 {[%emt 0:02:19]} 32. Be3 {[%emt 0:06:19]} Rxa1 {[%emt 0:02:45]} 33. Nxa1 {[%emt 0:00:05]} c1=Q {[%emt 0:00:03]} 34. Bxc1 {[%emt 0:00:04]} Nxc1 {[%emt 0:00:02]} 35. Kc3 {[%emt 0:01:42]} Kd5 {[%emt 0:05:25]} 36. Nc2 {[%emt 0:00:34]} Ne2+ {[%emt 0:02:14]} 37. Kd2 {[%emt 0:00:43]} Nf4 {[%emt 0:00:11]} 38. Ne3+ {[%emt 0:00:26]} Kc5 {[%emt 0:01:32]} 39. h4 {[%emt 0:04:12]} Nd3 {[%emt 0:01:32]} 40. Kc3 {[%emt 0:01:31]} Nb4 {[%emt 0:00:32]} 41. Ng4 {[%emt 0:01:01]} Nd5+ {[%emt 0:00:18]} 42. Kd2 {[%emt 0:00:29]} Kd4 {[%emt 0:00:05]} 43. g3 {[%emt 0:01:02]} h5 {[%emt 0:02:51]} 44. Nh6 {[%emt 0:01:42]} Nb4 {[%emt 0:04:03]} 45. Nf7 {[%emt 0:00:15]} Nxa6 {[%emt 0:00:57]} 46. Nh8 {[%emt 0:00:11]} e3+ {[%emt 0:01:09]} 47. Ke2 {[%emt 0:00:04]} Nb4 {[%emt 0:00:03]} 48. Nxg6 {[%emt 0:00:44]} Nd3 {[%emt 0:05:09]} 49. b3 {[%emt 0:04:02]} Nc1+ {[%emt 0:01:14]} 50. Ke1 {[%emt 0:00:10]} Nxb3 {[%emt 0:02:09]} 51. Nf4 {[%emt 0:00:05]} a5 {[%emt 0:00:15]} 52. Kd1 {[%emt 0:00:58]} Ke4 {[%emt 0:01:55]} 53. Nxh5 {[%emt 0:04:09]} Kf3 {[%emt 0:00:40]} 54. Nf4 {[%emt 0:00:19]} a4 {[%emt 0:00:38]} 55. Kc2 {[%emt 0:00:18]} Kxg3 {[%emt 0:01:17]} 56. Ne2+ {[%emt 0:00:49]} Kf2 {[%emt 0:05:19]} 57. Nc3 {[%emt 0:00:09]} Nd4+ {[%emt 0:01:24]} 58. Kd3 {[%emt 0:00:04]} a3 {[%emt 0:02:44]} 59. Kxd4 {[%emt 0:01:04]} e2 {[%emt 0:00:20]} 60. Nxe2 {[%emt 0:00:08]} a2 {[%emt 0:00:05]} 61. Nf4 {[%emt 0:00:11]} a1=Q+ {[%emt 0:00:05]} 62. Ke4 {[%emt 0:00:05]} Kg3 {[%emt 0:00:12]} 63. Ne2+ {[%emt 0:00:11]} Kxh4 {[%emt 0:00:05]} 64. Nd4 {[%emt 0:00:03]} Kg4 {[%emt 0:00:08]} 65. Kd5 {[%emt 0:00:04]} Kf4 {[%emt 0:00:13]} 66. Ne6+ {[%emt 0:00:02]} Kf5 {[%emt 0:00:17]} 67. Nd4+ {[%emt 0:00:02]} Kf6 {[%emt 0:00:04]} 68. Nc6 {[%emt 0:00:08]} Qc3 {[%emt 0:00:28]} 69. Nd4 {[%emt 0:00:04]} Qd3 {[%emt 0:00:18]} 70. Kc5 {[%emt 0:00:07]} Ke5 {[%emt 0:00:20]} 71. Nc6+ {[%emt 0:00:03]} Ke4 {[%emt 0:00:06]} 72. Nb4 {[%emt 0:00:08]} Qc3+ {[%emt 0:00:06]} 73. Kb5 {[%emt 0:00:03]} Kd4 {[%emt 0:00:52]} 74. Nc6+ {[%emt 0:00:06]} Kd5 {[%emt 0:00:06]} 75. Nb4+ {[%emt 0:00:04]} Kd6 {[%emt 0:00:05]} 76. Na6 {[%emt 0:00:04]} Qc6+ {[%emt 0:00:34]} 77. Ka5 {[%emt 0:00:04]} Qb7 {[%emt 0:00:05]} 78. Nb4 {[%emt 0:00:13]} Kc5 {[%emt 0:00:13]} 79. Nd3+ {[%emt 0:00:27]} Kd4 {[%emt 0:00:16]} 80. Nb4 {[%emt 0:00:03]} Kc4 {[%emt 0:00:06]} 0-1

[Event "EYCC Open U14 2021"]
[Site "Tornelo"]
[Date "2021.10.15"]
[Round "2.9"]
[White "Taspinar, Yanki"]
[Black "Hartofylakas, Spyros"]
[Result "1/2-1/2"]
[ECO "D53"]
[WhiteElo "2147"]
[BlackElo "1912"]
[Annotator "ChessBase"]
[PlyCount "152"]
[EventDate "2021.10.15"]
[EventType "swiss"]
[EventCountry "NET"]
[SourceTitle "playchess.com"]
[Source "ChessBase"]
[SourceQuality "1"]
[TimeControl "5400+30"]

1. d4 {[%emt 0:00:36]} d5 {[%emt 0:03:18]} 2. c4 {[%emt 0:00:18]} e6 {[%emt 0:00:07]} 3. Nc3 {[%emt 0:00:09]} Nf6 {[%emt 0:00:05]} 4. Nf3 {[%emt 0:00:42]} Be7 {[%emt 0:00:07]} 5. Bg5 {[%emt 0:00:10]} O-O {[%emt 0:00:34]} 6. e3 {[%emt 0:00:10]} Nbd7 {[%emt 0:00:53]} 7. Bd3 {[%emt 0:00:37]} a6 {[%emt 0:00:26]} 8. cxd5 {[%emt 0:00:10]} exd5 {[%emt 0:00:08]} 9. O-O {[%emt 0:00:13]} c6 {[%emt 0:01:00]} 10. h3 {[%emt 0:00:35]} Re8 {[%emt 0:00:24]} 11. Qc2 {[%emt 0:00:20]} Nf8 {[%emt 0:01:37]} 12. Ne5 {[%emt 0:00:52]} g6 {[%emt 0:06:36]} 13. f4 {[%emt 0:01:29]} Ne4 {[%emt 0:08:52]} 14. Nxe4 {[%emt 0:08:49]} dxe4 {[%emt 0:00:27]} 15. Bc4 {[%emt 0:02:33]} Be6 {[%emt 0:03:27]} 16. Bxe6 {[%emt 0:02:25]} Nxe6 {[%emt 0:00:40]} 17. Bxe7 {[%emt 0:00:11]} Rxe7 {[%emt 0:05:46]} 18. f5 {[%emt 0:01:06]} Nxd4 {[%emt 0:04:22]} 19. Qc5 {[%emt 0:04:21]} Nxf5 {[%emt 0:01:43]} 20. Rad1 {[%emt 0:01:07]} Qc7 {[%emt 0:01:17]} 21. Ng4 {[%emt 0:00:32]} Re6 {[%emt 0:02:22]} 22. Rf4 {[%emt 0:07:13]} Rd8 {[%emt 0:04:14]} 23. Rdf1 {[%emt 0:01:51]} Rd5 {[%emt 0:01:19]} 24. Qc3 {[%emt 0:02:17]} Qe7 {[%emt 0:01:52]} 25. Rxe4 {[%emt 0:04:26]} Rxe4 {[%emt 0:02:49]} 26. Nf6+ {[%emt 0:00:47]} Kf8 {[%emt 0:06:05]} 27. Nxd5 {[%emt 0:01:01]} Qe5 {[%emt 0:00:33]} 28. Qxe5 {[%emt 0:17:58]} Rxe5 {[%emt 0:01:55]} 29. Nf6 {[%emt 0:00:19]} Kg7 {[%emt 0:01:21]} 30. Ng4 {[%emt 0:00:28]} Re6 {[%emt 0:01:47]} 31. Kf2 {[%emt 0:04:33]} h5 {[%emt 0:01:11]} 32. Nh2 {[%emt 0:00:16]} Rxe3 {[%emt 0:04:20]} 33. Rd1 {[%emt 0:01:02]} Re7 {[%emt 0:00:40]} 34. Rd3 {[%emt 0:01:19]} h4 {[%emt 0:04:23]} 35. Nf3 {[%emt 0:00:27]} f6 {[%emt 0:01:51]} 36. b4 {[%emt 0:00:20]} g5 {[%emt 0:00:52]} 37. a4 {[%emt 0:00:26]} Kg6 {[%emt 0:00:54]} 38. Nd2 {[%emt 0:02:48]} Ng3 {[%emt 0:01:42]} 39. Re3 {[%emt 0:01:01]} Rd7 {[%emt 0:01:26]} 40. Nb3 {[%emt 0:00:41]} Nf5 {[%emt 0:02:49]} 41. Rc3 {[%emt 0:01:55]} Re7 {[%emt 0:02:42]} 42. Nc5 {[%emt 0:00:52]} Nd6 {[%emt 0:01:08]} 43. Kf3 {[%emt 0:01:05]} Kf5 {[%emt 0:01:16]} 44. Rd3 {[%emt 0:01:53]} Nc4 {[%emt 0:01:44]} 45. Rd4 {[%emt 0:00:55]} Ne5+ {[%emt 0:02:21]} 46. Kf2 {[%emt 0:00:18]} g4 {[%emt 0:01:52]} 47. a5 {[%emt 0:02:32]} g3+ {[%emt 0:02:18]} 48. Kf1 {[%emt 0:00:39]} Ng6 {[%emt 0:00:39]} 49. Rd2 {[%emt 0:22:13]} Nf4 {[%emt 0:01:01]} 50. Nb3 {[%emt 0:00:07]} Re4 {[%emt 0:02:46]} 51. Nd4+ {[%emt 0:00:45]} Kg6 {[%emt 0:02:08]} 52. Nf3 {[%emt 0:00:11]} Nd5 {[%emt 0:01:57]} 53. Rb2 {[%emt 0:01:23]} Nxb4 {[%emt 0:01:08]} 54. Rb3 {[%emt 0:00:46]} c5 {[%emt 0:01:02]} 55. Nd2 {[%emt 0:00:17]} Rf4+ {[%emt 0:00:21]} 56. Nf3 {[%emt 0:00:12]} Re4 {[%emt 0:01:52]} 57. Nd2 {[%emt 0:00:06]} Re7 {[%emt 0:00:31]} 58. Nf3 {[%emt 0:00:07]} Nc6 {[%emt 0:01:44]} 59. Rc3 {[%emt 0:00:33]} Nxa5 {[%emt 0:00:30]} 60. Rxc5 {[%emt 0:00:07]} Nb3 {[%emt 0:00:36]} 61. Rc3 {[%emt 0:00:10]} Na5 {[%emt 0:00:33]} 62. Nxh4+ {[%emt 0:00:06]} Kg5 {[%emt 0:01:05]} 63. Nf3+ {[%emt 0:00:16]} Kf4 {[%emt 0:00:26]} 64. Nd4 {[%emt 0:00:51]} b5 {[%emt 0:01:26]} 65. Ne2+ {[%emt 0:00:06]} Ke4 {[%emt 0:00:25]} 66. Nxg3+ {[%emt 0:00:12]} Kd5 {[%emt 0:00:17]} 67. Ra3 {[%emt 0:01:50]} Nc4 {[%emt 0:00:23]} 68. Rxa6 {[%emt 0:00:09]} f5 {[%emt 0:01:54]} 69. Ne2 {[%emt 0:00:25]} b4 {[%emt 0:00:14]} 70. Nc1 {[%emt 0:01:49]} Kd4 {[%emt 0:01:18]} 71. Ra8 {[%emt 0:00:54]} Kc3 {[%emt 0:01:05]} 72. Na2+ {[%emt 0:00:30]} Kb3 {[%emt 0:00:08]} 73. Nxb4 {[%emt 0:00:08]} Kxb4 {[%emt 0:00:08]} 74. Rf8 {[%emt 0:00:19]} Kc3 {[%emt 0:01:21]} 75. Kf2 {[%emt 0:00:10]} Nd6 {[%emt 0:00:15]} 76. g4 {[%emt 0:00:33]} fxg4 {[%emt 0:00:29]} 1/2-1/2